fUST/lending_fUST_20250113
["ID","MTS","AMOUNT","RATE_DAILY","PERIOD"]
[348764847,1736776238675,-500.0,0.00019178,2]
[348764849,1736776238685,-500.0,0.00019178,2]
[348764851,1736776238695,-183.614,0.00019366,2]
[348764853,1736776238704,-862.97,0.00019451,3]
[348764855,1736776238713,-500.0,0.00019452,3]
[348764857,1736776238723,-500.0,0.00019452,3]
[348764859,1736776238732,-500.0,0.00019452,3]
[348764861,1736776238742,-500.0,0.00019452,3]
[348764863,1736776238751,-544.1,0.00019452,2]
[348764865,1736776238760,-349.17088684,0.00019452,3]
[348764867,1736776238770,-1002.13,0.00019452,3]
[348764869,1736776238780,-500.0,0.00019452,3]
[348764871,1736776238790,-271.44039999,0.00019697,2]
[348764873,1736776238799,-500.0,0.00019726,3]
[348764875,1736776238809,-544.1,0.00019726,2]
[348764877,1736776238818,-1002.13,0.00019726,3]
[348764879,1736776238827,-500.0,0.00019726,3]
[348764881,1736776238837,-500.0,0.00019798,3]
[348764883,1736776238847,-500.0,0.00019798,3]
[348764885,1736776238857,-499.0,0.00019798,2]
[348764887,1736776238866,-500.0,0.00019799,3]
[348764889,1736776238877,-500.0,0.00019799,3]
[348764891,1736776238888,-500.0,0.00019799,3]
[348764893,1736776238897,-500.0,0.00019799,3]
[348764895,1736776238907,-500.0,0.00019799,3]
[348764897,1736776238916,-500.0,0.00019799,3]
[348764899,1736776238925,-500.0,0.00019799,3]
[348764901,1736776238935,-500.0,0.00019799,3]
[348764903,1736776238945,-500.0,0.00019799,3]
[348764905,1736776238955,-500.0,0.00019799,3]
[348764907,1736776238964,-500.0,0.00019799,3]
[348764909,1736776238973,-500.0,0.00019799,3]
[348764911,1736776238983,-500.86211172,0.00019799,3]
[348764913,1736776238992,-500.0,0.00019799,3]
[348764915,1736776239002,-500.0,0.00019799,3]
[348764917,1736776239012,-501.55960758,0.00019799,3]
[348764919,1736776239021,-501.4502604,0.00019799,3]
[348764921,1736776239030,-500.0,0.00019799,3]
[348764923,1736776239041,-500.0,0.00019799,3]
[348764925,1736776239051,-503.34627709,0.00019799,3]
[348764927,1736776239060,-500.0,0.00019799,3]
[348764929,1736776239070,-502.04740103,0.00019799,3]
[348764931,1736776239080,-500.0,0.00019799,3]
[348764933,1736776239089,-500.0,0.00019799,3]
[348764935,1736776239100,-502.81034884,0.00019799,3]
[348764937,1736776239111,-500.0,0.00019799,3]
[348764939,1736776239120,-500.0,0.00019799,3]
[348764941,1736776239130,-500.0,0.00019799,3]
[348764943,1736776239140,-273.48835404,0.000199,2]
[348764945,1736776239150,-500.0,0.00019998,3]
[348764947,1736776239160,-500.0,0.00019998,3]
[348764949,1736776239169,-300.0,0.0002,8]
[348764951,1736776239180,-4878.49367994,0.0002,7]
[348764953,1736776239190,-500.0,0.0002,3]
[348764955,1736776239200,-544.1,0.0002,2]
[348764957,1736776239209,-1002.13,0.0002,3]
[348764959,1736776239218,-500.0,0.0002,3]
[348764961,1736776239228,-273.48835392,0.00020038,2]
[348764963,1736776239237,-500.0,0.00020072,2]
[348764965,1736776239246,-337.22641459,0.00020072,2]
[348764967,1736776239255,-500.0,0.00020072,2]
[348764969,1736776239265,-247.7306476,0.00020072,2]
[348764971,1736776239274,-500.0,0.00020072,2]
[348764973,1736776239286,-346.225583,0.00020072,2]
[348764975,1736776239296,-500.0,0.00020072,2]
[348764977,1736776239305,-500.0,0.00020073,3]
[348764979,1736776239315,-500.0,0.00020073,3]
[348764981,1736776239324,-503.35467048,0.00020073,3]
[348764983,1736776239334,-502.30753567,0.00020073,3]
[348764985,1736776239344,-500.0,0.00020073,3]
[348764987,1736776239354,-273.48835392,0.00020176,2]
[348764989,1736776239363,-500.0,0.00020272,3]
[348764991,1736776239373,-500.0,0.00020272,3]
[348764994,1736776239382,-500.0,0.00020273,3]
[348764996,1736776239392,-544.1,0.00020273,2]
[348764998,1736776239401,-1002.13,0.00020273,3]
[348765000,1736776239411,-245.87,0.00020273,3]
[348765002,1736776239420,-395.43,0.000203,2]
[348765004,1736776239429,-273.48835392,0.00020314,2]
[348765006,1736776239438,-273.48835392,0.00020452,2]
[348765007,1736776239448,-179.548681,0.00020521,2]
[348765010,1736776239457,-862.97,0.00020545,3]
[348765011,1736776239466,-500.0,0.00020546,3]
[348765013,1736776239476,-500.0,0.00020547,2]
[348765015,1736776239486,-500.0,0.00020547,3]
[348765018,1736776239496,-500.0,0.00020547,3]
[348765020,1736776239506,-544.1,0.00020547,2]
[348765022,1736776239515,-1002.13,0.00020547,3]
[348765024,1736776239525,-273.48835392,0.0002059,2]
[348765026,1736776239538,-338.51483277,0.0002062,3]
[348765028,1736776239547,-273.48835392,0.00020728,2]
[348765030,1736776239557,-500.0,0.0002082,3]
[348765032,1736776239568,-500.0,0.00020821,3]
[348765034,1736776239578,-544.1,0.00020821,2]
[348765036,1736776239588,-1002.13,0.00020821,3]
[348765038,1736776239598,-273.48835392,0.00020866,2]
[348765040,1736776239608,-540.30878937,0.00020981,2]
[348765042,1736776239618,-540.30878937,0.00020982,2]
[348765044,1736776239627,-540.30878937,0.00020993,2]
[348765046,1736776239637,-600.0,0.00021,3]
[348765048,1736776239649,-273.48835392,0.00021003,2]
[348765050,1736776239659,-500.0,0.00021094,3]
[348765052,1736776239669,-500.0,0.00021095,3]
[348765054,1736776239679,-544.1,0.00021095,2]
[348765056,1736776239689,-1002.13,0.00021095,3]
[348765058,1736776239699,-273.48835392,0.00021141,2]
[348765060,1736776239708,-164.17953,0.00021209,2]
[348765062,1736776239718,-273.48835392,0.00021279,2]
[348765064,1736776239728,-500.0,0.00021368,3]
[348765066,1736776239738,-500.0,0.00021369,3]
[348765068,1736776239748,-544.1,0.00021369,2]
[348765070,1736776239758,-1002.13,0.00021369,3]
[348765072,1736776239767,-273.48835392,0.00021417,2]
[348765074,1736776239777,-300.0,0.000215,9]
[348765076,1736776239792,-273.48835392,0.00021555,2]
[348765078,1736776239802,-862.97,0.00021639,3]
[348765080,1736776239813,-862.97,0.00021639,3]
[348765082,1736776239823,-500.0,0.00021642,3]
[348765084,1736776239832,-421.79214588,0.00021643,3]
[348765091,1736776239890,-20.54183365,0.00021643,3]
[348765093,1736776239902,-57.66602047,0.00021643,3]
[348765095,1736776239912,-544.1,0.00021643,2]
[348765097,1736776239922,-1002.13,0.00021643,3]
[348765099,1736776239932,-273.48835392,0.00021693,2]
[348765101,1736776239942,-273.48835392,0.00021831,2]
[348765103,1736776239952,-862.97,0.00021916,3]
[348765105,1736776239962,-500.0,0.00021916,3]
[348765107,1736776239972,-500.0,0.00021917,3]
[348765110,1736776239983,-544.1,0.00021917,2]
[348765112,1736776239992,-1002.13,0.00021917,3]
[348765114,1736776240001,-500.0,0.00021917,3]
[348765115,1736776240011,-273.48835392,0.00021969,2]
[348765117,1736776240020,-273.48835392,0.00022107,2]
[348765119,1736776240030,-500.0,0.0002219,3]
[348765121,1736776240047,-500.0,0.00022191,3]
[348765123,1736776240057,-544.1,0.00022191,2]
[348765125,1736776240068,-1002.13,0.00022191,3]
[348765127,1736776240078,-273.48835392,0.00022245,2]
[348765129,1736776240088,-273.48835392,0.00022383,2]
[348765131,1736776240098,-529.281,0.0002245,2]
[348765133,1736776240111,-500.0,0.00022464,3]
[348765135,1736776240120,-500.0,0.00022465,3]
[348765146,1736776240216,-229.27879487,0.00022465,2]
[348765149,1736776240230,-314.82120513,0.00022465,2]
[348765151,1736776240239,-1002.13,0.00022465,3]
[348765153,1736776240249,-273.48835392,0.00022521,2]
[348765155,1736776240259,-273.48835392,0.00022659,2]
[348765157,1736776240269,-500.0,0.00022738,3]
[348765159,1736776240278,-500.0,0.00022739,3]
[348765161,1736776240291,-544.1,0.00022739,2]
[348765163,1736776240301,-1002.13,0.00022739,3]
[348765165,1736776240311,-273.48835392,0.00022797,2]
[348765167,1736776240320,-273.48835392,0.00022934,2]
[348765169,1736776240330,-300.0,0.00023,10]
[348765171,1736776240340,-7438.69753278,0.00023,2]
[348765173,1736776240349,-862.97,0.00023003,3]
[348765175,1736776240359,-500.0,0.00023012,3]
[348765177,1736776240369,-500.0,0.00023013,3]
[348765178,1736776240379,-544.1,0.00023013,2]
[348765180,1736776240389,-1002.13,0.00023013,3]
[348765182,1736776240398,-273.48835392,0.00023072,2]
[348765184,1736776240407,-535.0,0.00023073,2]
[348765186,1736776240418,-2081.0,0.00023073,2]
[348765188,1736776240427,-2317.0,0.00023073,2]
[348765190,1736776240436,-500.0,0.00023089,2]
[348765191,1736776240445,-500.0,0.00023089,2]
[348765193,1736776240454,-153.0,0.00023096,2]
[348765194,1736776240464,-273.48835392,0.0002321,2]
[348765196,1736776240473,-500.0,0.00023286,3]
[348765197,1736776240483,-500.0,0.00023287,3]
[348765199,1736776240492,-544.1,0.00023287,2]
[348765201,1736776240502,-1002.13,0.00023287,3]
[348765203,1736776240511,-273.48835392,0.00023348,2]
[348765204,1736776240520,-212.2556853,0.00023391,2]
[348765206,1736776240531,-1000.0,0.00023402,2]
[348765209,1736776240541,-273.48835392,0.00023486,2]
[348765212,1736776240550,-302.66710253,0.00023501,10]
[348765214,1736776240560,-500.0,0.0002356,3]
[348765217,1736776240570,-500.0,0.00023561,3]
[348765219,1736776240580,-544.1,0.00023561,2]
[348765220,1736776240589,-1002.13,0.00023561,3]
[348765222,1736776240598,-1000.0,0.00023567,2]
[348765224,1736776240608,-151.0,0.000236,5]
[348765226,1736776240618,-151.0,0.000236,9]
[348765227,1736776240627,-151.0,0.000236,8]
[348765229,1736776240636,-151.0,0.000236,8]
[348765231,1736776240645,-309.2590886,0.00023616,2]
[348765233,1736776240655,-151.0,0.00023618,7]
[348765234,1736776240664,-291.981212,0.00023618,7]
[348765236,1736776240674,-151.0,0.00023618,7]
[348765238,1736776240683,-151.0,0.00023618,7]
[348765240,1736776240692,-151.0,0.00023618,7]
[348765242,1736776240702,-151.0,0.00023618,7]
[348765244,1736776240711,-151.0,0.00023618,7]
[348765245,1736776240720,-151.0,0.00023618,7]
[348765247,1736776240729,-506.37838115,0.00023618,2]
[348765249,1736776240738,-151.0,0.00023619,2]
[348765251,1736776240747,-862.97,0.00023619,3]
[348765252,1736776240756,-862.97,0.00023619,3]
[348765254,1736776240766,-862.97,0.00023619,3]
[348765256,1736776240775,-862.97,0.00023619,3]
[348765258,1736776240786,-151.0,0.00023619,7]
[348765259,1736776240795,-500.0,0.00023619,2]
[348765261,1736776240805,-620.93647025,0.00023619,2]
[348765263,1736776240814,-9626.09617182,0.00023619,5]
[348765265,1736776240823,-5783.18975639,0.00023619,5]
[348765267,1736776240833,-1613112.17161059,0.00023619,10]
[348765271,1736776240870,-151.0,0.00023619,7]
[348765273,1736776240879,-2258.07288579,0.00023619,10]
[348765467,1736776242939,-395.0,0.00023073,2]
[348765469,1736776242949,-134.24,0.00023619,10]
[348765472,1736776243016,-1588.93187504,0.00023619,10]
[348765473,1736776243029,-500.0,0.00023619,10]
[348765762,1736776246031,-694.77597,0.00023619,10]
[348765764,1736776246043,-755.0,0.00023619,10]
[348765770,1736776246093,-1137.3759565,0.00023619,10]
[348765777,1736776246150,-637.35078079,0.00023619,10]
[348767224,1736776556506,502.0,0.00015052,2]
[348767228,1736777016344,1496.10663028,0.00015052,2]
[348767229,1736777016379,4457.00336972,0.00015052,2]
[348767255,1736777229110,-300.0,0.00018292,2]
[348767256,1736777229136,-13785.53815752,0.00018293,2]
[348767257,1736777230180,-1242.62208643,0.00018293,2]
[348767258,1736777268942,164.17953,0.00013973,2]
[348767269,1736777353133,-651.101051,0.00018249,2]
[348767270,1736777353157,-2.66914836,0.00018293,2]
[348767271,1736777353200,-541.76845949,0.00018293,2]
[348767272,1736777353232,-363.685209,0.00018883,2]
[348767273,1736777353268,-500.0,0.00019178,2]
[348767274,1736777353301,-379.70425415,0.00019178,2]
[348767295,1736777423485,299.9,0.00015052,2]
[348767356,1736777432514,-223.55284498,0.000189,2]
[348767359,1736777432524,-500.0,0.00019178,2]
[348767361,1736777432534,-500.0,0.00019178,2]
[348767363,1736777432544,-500.0,0.00019178,2]
[348767365,1736777432554,-207.2554259,0.00019178,2]
[348767367,1736777432566,-300.78680513,0.00019178,2]
[348767369,1736777432576,-500.0,0.00019178,2]
[348767371,1736777432588,-500.0,0.00019178,2]
[348767373,1736777432598,-500.0,0.00019178,2]
[348767375,1736777432608,-500.0,0.00019178,2]
[348767377,1736777432618,-500.0,0.00019178,2]
[348767379,1736777432627,-582.42,0.00019178,2]
[348767381,1736777432637,-500.0,0.00019178,2]
[348767383,1736777432646,-500.0,0.00019178,2]
[348767385,1736777432656,-500.0,0.00019178,2]
[348767387,1736777432666,-500.0,0.00019178,2]
[348767390,1736777432676,-500.0,0.00019178,2]
[348767393,1736777432686,-500.0,0.00019178,2]
[348767396,1736777432696,-500.0,0.00019178,2]
[348767399,1736777432705,-500.0,0.00019178,2]
[348767401,1736777432714,-500.0,0.00019178,2]
[348767403,1736777432724,-500.0,0.00019178,2]
[348767405,1736777432734,-500.0,0.00019178,2]
[348767407,1736777432743,-500.0,0.00019178,2]
[348767409,1736777432753,-500.0,0.00019178,2]
[348767411,1736777432762,-534.69207468,0.00019178,2]
[348767413,1736777432773,-500.0,0.00019178,2]
[348767415,1736777432783,-500.0,0.00019178,2]
[348767417,1736777432792,-508.07539387,0.00019178,2]
[348767420,1736777432803,-500.0,0.00019178,2]
[348767422,1736777432812,-517.53591371,0.00019178,2]
[348767424,1736777432822,-500.0,0.00019178,2]
[348767426,1736777432831,-542.23011617,0.00019178,2]
[348767428,1736777432843,-500.0,0.00019178,2]
[348767430,1736777432853,-500.0,0.00019178,2]
[348767432,1736777432862,-500.0,0.00019178,2]
[348767434,1736777432872,-500.0,0.00019178,2]
[348767436,1736777432882,-506.10950078,0.00019178,2]
[348767438,1736777432891,-500.0,0.00019178,2]
[348767440,1736777432901,-500.0,0.00019178,2]
[348767442,1736777432911,-500.0,0.00019178,2]
[348767444,1736777432920,-500.0,0.00019178,2]
[348767446,1736777432930,-500.0,0.00019178,2]
[348767448,1736777432940,-500.0,0.00019178,2]
[348767450,1736777432950,-500.0,0.00019178,2]
[348767452,1736777432960,-500.0,0.00019178,2]
[348767454,1736777432970,-514.363424,0.00019178,2]
[348767456,1736777432980,-500.0,0.00019178,2]
[348767458,1736777432989,-500.0,0.00019178,2]
[348767460,1736777432999,-506.53518827,0.00019178,2]
[348767462,1736777433009,-500.0,0.00019178,2]
[348767464,1736777433019,-500.0,0.00019178,2]
[348767466,1736777433029,-559.4652382,0.00019178,2]
[348767468,1736777433039,-500.0,0.00019178,2]
[348767470,1736777433049,-500.0,0.00019178,2]
[348767472,1736777433058,-514.38558945,0.00019178,2]
[348767474,1736777433068,-644.80892709,0.00019178,2]
[348767476,1736777433079,-500.0,0.00019178,2]
[348767478,1736777433090,-500.0,0.00019178,2]
[348767480,1736777433100,-500.0,0.00019178,2]
[348767482,1736777433111,-500.0,0.00019178,2]
[348767484,1736777433122,-500.0,0.00019178,2]
[348767486,1736777433132,-500.0,0.00019178,2]
[348767488,1736777433141,-500.0,0.00019178,2]
[348767490,1736777433153,-500.0,0.00019178,2]
[348767492,1736777433163,-500.0,0.00019178,2]
[348767494,1736777433174,-500.0,0.00019178,2]
[348767496,1736777433184,-506.1599613,0.00019178,2]
[348767498,1736777433195,-500.0,0.00019178,2]
[348767500,1736777433206,-635.98782014,0.00019178,2]
[348767501,1736777433217,-500.0,0.00019178,2]
[348767503,1736777433227,-500.0,0.00019178,2]
[348767505,1736777433237,-500.0,0.00019178,2]
[348767507,1736777433247,-528.92,0.00019178,2]
[348767509,1736777433257,-500.0,0.00019178,2]
[348767511,1736777433266,-500.0,0.00019178,2]
[348767513,1736777433276,-500.0,0.00019178,2]
[348767515,1736777433287,-500.0,0.00019178,2]
[348767517,1736777433297,-500.0,0.00019178,2]
[348767519,1736777433307,-500.0,0.00019178,2]
[348767521,1736777433317,-500.0,0.00019178,2]
[348767523,1736777433327,-500.0,0.00019178,2]
[348767525,1736777433338,-500.0,0.00019178,2]
[348767527,1736777433348,-500.0,0.00019178,2]
[348767529,1736777433359,-500.0,0.00019178,2]
[348767531,1736777433370,-500.0,0.00019178,2]
[348767533,1736777433382,-500.0,0.00019178,2]
[348767535,1736777433392,-500.0,0.00019178,2]
[348767537,1736777433403,-500.0,0.00019178,2]
[348767539,1736777433414,-500.0,0.00019178,2]
[348767541,1736777433425,-500.0,0.00019178,2]
[348767543,1736777433435,-500.0,0.00019178,2]
[348767545,1736777433445,-500.0,0.00019178,2]
[348767547,1736777433454,-500.0,0.00019178,2]
[348767549,1736777433465,-500.0,0.00019178,2]
[348767551,1736777433475,-1713.23,0.00019178,2]
[348767553,1736777433485,-500.0,0.00019178,2]
[348767555,1736777433495,-500.0,0.00019178,2]
[348767557,1736777433509,-500.0,0.00019178,2]
[348767558,1736777433520,-500.0,0.00019178,2]
[348767560,1736777433530,-500.0,0.00019178,2]
[348767561,1736777433539,-500.0,0.00019178,2]
[348767563,1736777433551,-500.0,0.00019178,2]
[348767565,1736777433560,-500.0,0.00019178,2]
[348767576,1736777433703,-500.0,0.00019178,2]
[348767578,1736777433714,-500.0,0.00019178,2]
[348767579,1736777433724,-500.0,0.00019178,2]
[348767581,1736777433734,-628.43437996,0.00019178,2]
[348767583,1736777433744,-500.0,0.00019178,2]
[348767585,1736777433754,-500.0,0.00019178,2]
[348767587,1736777433764,-500.0,0.00019178,2]
[348767588,1736777433774,-500.0,0.00019178,2]
[348767589,1736777433784,-500.0,0.00019178,2]
[348767590,1736777433794,-500.0,0.00019178,2]
[348767591,1736777433804,-500.0,0.00019178,2]
[348767593,1736777433814,-503.54897932,0.00019178,2]
[348767595,1736777433824,-500.0,0.00019178,2]
[348767597,1736777433834,-500.0,0.00019178,2]
[348767598,1736777433845,-500.0,0.00019178,2]
[348767600,1736777433854,-500.0,0.00019178,2]
[348767602,1736777433864,-500.0,0.00019178,2]
[348767604,1736777433874,-500.0,0.00019178,2]
[348767605,1736777433884,-500.0,0.00019178,2]
[348767607,1736777433894,-500.0,0.00019178,2]
[348767609,1736777433903,-336.26887488,0.00019178,2]
[348767611,1736777433913,-508.52348899,0.00019178,2]
[348767612,1736777433923,-500.0,0.00019178,2]
[348767614,1736777433932,-630.58,0.00019178,2]
[348767616,1736777433942,-500.0,0.00019178,2]
[348767618,1736777433951,-500.0,0.00019178,2]
[348767620,1736777433962,-183.614,0.00019365,2]
[348767621,1736777433971,-205.13617589,0.00019451,2]
[348767623,1736777433981,-500.0,0.00019452,3]
[348767625,1736777433990,-500.0,0.00019452,3]
[348767627,1736777434000,-500.0,0.00019452,3]
[348767629,1736777434010,-567.31570107,0.00019452,3]
[348767631,1736777434020,-500.0,0.00019452,3]
[348767632,1736777434029,-500.0,0.00019452,3]
[348767634,1736777434039,-500.0,0.00019452,3]
[348767636,1736777434048,-582.42,0.00019452,3]
[348767637,1736777434058,-500.0,0.00019452,3]
[348767639,1736777434068,-505.22254702,0.00019452,3]
[348767641,1736777434078,-500.0,0.00019452,3]
[348767642,1736777434087,-500.0,0.00019452,3]
[348767644,1736777434097,-500.0,0.00019452,3]
[348767646,1736777434107,-500.0,0.00019452,3]
[348767648,1736777434118,-154.70685733,0.00019452,3]
[348767650,1736777434129,-500.0,0.00019452,3]
[348767652,1736777434139,-500.0,0.00019452,3]
[348767653,1736777434149,-500.0,0.00019452,3]
[348767655,1736777434159,-500.0,0.00019452,3]
[348767657,1736777434170,-218.40016413,0.00019452,3]
[348767659,1736777434179,-500.0,0.00019452,3]
[348767660,1736777434189,-500.0,0.00019452,3]
[348767662,1736777434199,-500.0,0.00019452,3]
[348767664,1736777434209,-500.0,0.00019452,3]
[348767666,1736777434219,-500.0,0.00019452,3]
[348767668,1736777434229,-507.71617731,0.00019452,3]
[348767670,1736777434239,-500.0,0.00019452,3]
[348767671,1736777434248,-500.0,0.00019452,3]
[348767673,1736777434258,-202.36,0.00019452,3]
[348767675,1736777434268,-500.0,0.00019452,3]
[348767676,1736777434278,-506.13217198,0.00019452,3]
[348767678,1736777434289,-500.0,0.00019452,3]
[348767680,1736777434299,-500.0,0.00019452,3]
[348767682,1736777434309,-500.0,0.00019452,3]
[348767684,1736777434321,-524.12087585,0.00019452,3]
[348767686,1736777434332,-500.0,0.00019452,3]
[348767688,1736777434344,-500.0,0.00019452,3]
[348767690,1736777434358,-500.0,0.00019452,3]
[348767691,1736777434369,-500.0,0.00019452,3]
[348767693,1736777434379,-500.0,0.00019452,3]
[348767694,1736777434390,-500.0,0.00019452,3]
[348767696,1736777434401,-500.0,0.00019452,3]
[348767697,1736777434411,-500.0,0.00019452,3]
[348767699,1736777434422,-500.0,0.00019452,3]
[348767701,1736777434432,-500.0,0.00019452,3]
[348767703,1736777434442,-500.0,0.00019452,3]
[348767705,1736777434453,-500.0,0.00019452,3]
[348767706,1736777434463,-528.92,0.00019452,2]
[348767708,1736777434474,-500.0,0.00019452,3]
[348767710,1736777434484,-500.0,0.00019452,3]
[348767712,1736777434494,-500.0,0.00019452,3]
[348767714,1736777434510,-505.15251203,0.00019452,3]
[348767715,1736777434521,-597.22022739,0.00019452,3]
[348767717,1736777434531,-501.53385779,0.00019452,3]
[348767719,1736777434541,-500.0,0.00019452,3]
[348767720,1736777434552,-500.0,0.00019452,3]
[348767722,1736777434562,-500.0,0.00019452,3]
[348767724,1736777434572,-500.0,0.00019452,3]
[348767726,1736777434584,-500.0,0.00019452,3]
[348767728,1736777434598,-500.0,0.00019452,3]
[348767729,1736777434608,-500.0,0.00019452,3]
[348767731,1736777434618,-500.0,0.00019452,3]
[348767733,1736777434627,-500.0,0.00019452,3]
[348767734,1736777434637,-500.0,0.00019452,3]
[348767736,1736777434647,-500.0,0.00019452,3]
[348767738,1736777434657,-500.0,0.00019452,3]
[348767740,1736777434667,-620.30570833,0.00019452,3]
[348767741,1736777434677,-500.0,0.00019452,3]
[348767743,1736777434687,-505.60444701,0.00019452,3]
[348767745,1736777434696,-1713.23,0.00019452,3]
[348767747,1736777434706,-500.0,0.00019452,3]
[348767749,1736777434715,-500.0,0.00019452,3]
[348767750,1736777434725,-500.0,0.00019452,3]
[348767752,1736777434734,-500.0,0.00019452,3]
[348767754,1736777434744,-544.05449372,0.00019452,3]
[348767756,1736777434754,-500.0,0.00019452,3]
[348767757,1736777434763,-500.0,0.00019452,3]
[348767759,1736777434773,-500.0,0.00019452,3]
[348767761,1736777434782,-500.0,0.00019452,3]
[348767763,1736777434792,-500.0,0.00019452,3]
[348767765,1736777434802,-500.0,0.00019452,3]
[348767766,1736777434811,-500.0,0.00019452,3]
[348767768,1736777434821,-500.0,0.00019452,3]
[348767770,1736777434831,-442.46,0.00019452,3]
[348767772,1736777434842,-506.4563848,0.00019452,3]
[348767774,1736777434852,-506.86458524,0.00019452,3]
[348767776,1736777434863,-500.0,0.00019452,3]
[348767778,1736777434872,-500.0,0.00019452,3]
[348767779,1736777434881,-500.0,0.00019452,3]
[348767781,1736777434891,-500.0,0.00019452,3]
[348767783,1736777434901,-500.0,0.00019452,3]
[348767785,1736777434911,-500.0,0.00019452,3]
[348767787,1736777434920,-500.0,0.00019452,3]
[348767789,1736777434930,-504.48295395,0.00019452,3]
[348767791,1736777434940,-630.58,0.00019452,3]
[348767793,1736777434949,-500.0,0.00019452,3]
[348767794,1736777434958,-500.0,0.00019452,3]
[348767796,1736777434968,-500.0,0.00019726,3]
[348767798,1736777434977,-500.0,0.00019726,3]
[348767800,1736777434987,-495.55536253,0.00019726,3]
[348767802,1736777434997,-500.0,0.00019726,3]
[348767804,1736777435007,-500.0,0.00019726,3]
[348767806,1736777435017,-582.42,0.00019726,3]
[348767807,1736777435027,-500.0,0.00019726,3]
[348767809,1736777435037,-500.0,0.00019726,3]
[348767811,1736777435047,-500.0,0.00019726,3]
[348767813,1736777435057,-500.0,0.00019726,3]
[348767815,1736777435066,-500.0,0.00019726,3]
[348767817,1736777435076,-500.0,0.00019726,3]
[348767819,1736777435087,-500.0,0.00019726,3]
[348767820,1736777435096,-500.0,0.00019726,3]
[348767822,1736777435106,-505.83425954,0.00019726,3]
[348767824,1736777435115,-500.0,0.00019726,3]
[348767826,1736777435124,-632.41,0.00019726,3]
[348767828,1736777435134,-575.84971417,0.00019726,3]
[348767830,1736777435143,-500.0,0.00019726,3]
[348767831,1736777435152,-500.0,0.00019726,3]
[348767833,1736777435162,-500.0,0.00019726,3]
[348767835,1736777435172,-500.0,0.00019726,3]
[348767836,1736777435182,-500.0,0.00019726,3]
[348767838,1736777435192,-500.0,0.00019726,3]
[348767840,1736777435201,-500.0,0.00019726,3]
[348767841,1736777435211,-500.0,0.00019726,3]
[348767843,1736777435221,-420.45564005,0.00019726,3]
[348767845,1736777435231,-500.0,0.00019726,3]
[348767847,1736777435240,-413.34861339,0.00019726,3]
[348767848,1736777435250,-500.0,0.00019726,3]
[348767850,1736777435259,-528.92,0.00019726,2]
[348767852,1736777435269,-500.0,0.00019726,3]
[348767854,1736777435278,-500.0,0.00019726,3]
[348767855,1736777435288,-500.0,0.00019726,3]
[348767857,1736777435298,-500.0,0.00019726,3]
[348767859,1736777435307,-500.0,0.00019726,3]
[348767861,1736777435317,-500.0,0.00019726,3]
[348767862,1736777435327,-500.0,0.00019726,3]
[348767864,1736777435339,-500.0,0.00019726,3]
[348767866,1736777435348,-613.55,0.00019726,3]